bitfinex-derivatives/quotes_ETHF0:USTF0_20250309
["timestamp","ask_amount","ask_price","bid_price","bid_amount"]
[1741544815397,4.19363485,2022.0,2021.8,0.98926]
[1741544815592,3.20440485,2022.0,2021.9,0.98924]
[1741544815792,3.2078,2022.5,2022.4,0.989]
[1741544815996,3.2078,2022.8,2022.0,3.2078]
[1741544816201,0.98892,2022.6,2022.4,0.98899]
[1741544816407,3.2078,2022.5,2022.0,3.2078]
[1741544816596,3.2078,2022.5,2022.0,5.68078]
[1741544816906,3.2078,2022.5,2022.1,0.98912]
[1741544816907,0.98906,2022.3,2022.1,0.98912]
[1741544817406,0.98914,2022.2,2022.0,0.00740485]
[1741544817703,3.21520485,2022.5,2022.4,0.989]
[1741544818001,0.99635485,2022.5,2022.3,0.98901]
[1741544818306,0.00740485,2022.5,2022.4,0.989]
[1741544818698,3.2078,2023.1,2022.4,0.989]
[1741544818905,0.9888,2022.9,2022.4,0.38636449]
[1741544819102,0.98877,2022.9,2022.7,0.98884]
[1741544819403,0.98873,2023.0,2022.8,0.98879]
[1741544819603,3.2078,2023.1,2022.5,5.68018]
[1741544819801,3.21516124,2023.1,2022.5,3.2078]
[1741544820199,0.98882,2022.8,2022.6,0.98888]
[1741544820394,5.68686124,2023.1,2022.4,4.2465]
[1741544820605,4.19664,2022.8,2022.4,4.2465]
[1741544820805,0.98887,2022.7,2022.5,0.98892]
[1741544821107,5.68689124,2023.1,2022.4,1.2975]
[1741544821108,0.98875,2023.0,2022.4,1.2975]
[1741544821295,3.21516124,2023.1,2022.4,1.2975]
[1741544821501,3.21516124,2023.1,2022.7,0.9888]
[1741544821699,3.21516124,2023.1,2023.0,0.9887]
[1741544821895,0.00736124,2023.1,2023.0,0.9887]
[1741544822398,0.00736124,2023.1,2022.8,3.7022]
[1741544822399,0.98856,2023.3,2023.1,0.98862]
[1741544822603,3.2078,2023.7,2022.8,3.7022]
[1741544822905,5.67877,2023.7,2022.8,6.6512]
[1741544823107,3.2078,2022.9,2022.4,4.5053]
[1741544823305,3.2078,2022.9,2022.4,5.49429]
[1741544823506,3.2078,2022.9,2022.4,4.5053]
[1741544823802,0.98895,2022.5,2022.4,0.00740485]
[1741544824106,3.2078,2022.9,2022.4,0.00740485]
[1741544824407,0.98895,2022.5,2022.4,0.00740485]
[1741544824707,6.4038,2022.6,2021.7,1.3241]
[1741544824901,3.2078,2022.0,2021.6,3.2078]
[1741544825408,0.9893,2021.8,2021.6,4.19716]
[1741544825706,0.98934,2021.7,2021.6,3.2078]
[1741544826106,0.00740485,2021.9,2021.6,3.2078]
[1741544826303,0.98936,2021.7,2021.5,0.00740485]
[1741544826603,3.2078,2022.0,2021.5,0.00740485]
[1741544826908,3.2078,2022.3,2022.2,0.9891]
[1741544827207,3.2078,2023.1,2022.2,6.1568]
[1741544827507,3.2078,2023.1,2022.5,3.2078]
[1741544827705,0.98872,2023.0,2022.8,0.98878]
[1741544827900,0.98878,2022.9,2022.6,0.99627485]
[1741544828105,6.4038,2023.4,2022.7,0.98882]
[1741544828404,0.98878,2022.9,2022.6,0.99627485]
[1741544828604,0.98885,2022.7,2022.6,0.00740485]
[1741544828801,0.98885,2022.7,2022.6,4.85e-06]
[1741544828998,6.24085,2022.7,2022.6,4.85e-06]
[1741544830205,2.24085,2022.7,2022.6,4.85e-06]
[1741544830403,6.24085,2022.7,2022.6,4.85e-06]
[1741544830603,2.24085,2022.7,2022.6,4.85e-06]
[1741544830805,6.24085,2022.7,2022.6,4.85e-06]
[1741544832712,9.22585,2022.7,2022.6,4.85e-06]
[1741544833012,5.22585,2022.7,2022.6,4.85e-06]
[1741544833418,8.42085,2022.7,2022.6,4.85e-06]
[1741544833603,3.2078,2022.8,2022.6,4.85e-06]
[1741544833811,0.0074,2022.9,2022.8,0.9888]
[1741544834009,0.0074,2022.9,2022.6,4.85e-06]
[1741544834310,0.98885,2022.7,2022.6,4.85e-06]
[1741544835008,4.18385,2022.7,2022.6,4.85e-06]
[1741544835403,8.18385,2022.7,2022.6,4.85e-06]
[1741544837114,0.98954,2021.3,2021.2,2.949]
[1741544837307,0.9897,2021.0,2020.8,0.98977]
[1741544837507,3.2078,2021.3,2020.7,1.2915]
[1741544837810,3.2078,2021.0,2020.9,0.98973]
[1741544838007,2.6139,2022.1,2021.5,0.98944]
[1741544838008,3.2078,2021.6,2021.5,0.98944]
[1741544838207,3.2078,2021.9,2021.4,0.98945]
[1741544838413,0.00740485,2021.8,2021.3,1.2558]
[1741544839012,0.00740485,2021.8,2021.5,3.2078]
[1741544839213,0.00740485,2021.8,2021.7,0.98934]
[1741544839724,0.00740485,2021.8,2021.7,4.19714]
[1741544840719,0.00740485,2021.8,2021.7,3.2078]
[1741544841017,0.00740485,2021.8,2021.7,4.19714]
[1741544841414,0.00740485,2021.8,2021.6,0.98937]
[1741544841612,0.00740485,2021.8,2021.4,7.4247]
[1741544841915,0.00740485,2021.8,2021.6,0.98937]
[1741544842120,0.00740485,2021.8,2021.4,7.4247]
[1741544842121,0.00740485,2021.8,2021.7,0.98934]
[1741544842726,4.85e-06,2021.8,2021.7,0.98934]
[1741544842908,4.85e-06,2021.8,2021.7,7.93834]
[1741544843312,4.85e-06,2021.8,2021.7,3.93834]
[1741544844421,0.98935,2021.7,2021.4,4.2297]
[1741544844716,0.98943,2021.6,2021.4,1.2807]
[1741544844909,0.98943,2021.6,2021.3,5.45311]
[1741544844910,3.2078,2021.6,2021.3,1.2558]
[1741544845115,0.98949,2021.4,2021.3,1.2558]
[1741544845314,0.98945,2021.5,2021.3,2.24531]
[1741544845609,3.2078,2021.6,2021.3,1.2558]
[1741544845916,0.98966,2021.1,2020.9,6.1568]
[1741544846118,3.2078,2021.5,2020.9,3.2078]
[1741544846315,0.98965,2021.1,2020.8,1.251]
[1741544846514,3.2078,2021.2,2020.8,1.251]
[1741544846923,0.98952,2021.4,2020.8,1.251]
[1741544847116,0.98952,2021.4,2020.8,4.4588]
[1741544847318,3.195,2021.7,2020.9,2.949]
[1741544847513,3.195,2021.7,2021.0,4.2674]
[1741544847712,4.18438,2021.7,2021.4,0.98947]
[1741544847919,4.85e-06,2021.8,2021.1,3.2078]
[1741544848115,4.85e-06,2021.8,2021.2,2.949]
[1741544848316,0.98939,2021.6,2021.4,0.98947]
[1741544848522,0.98937,2021.7,2021.2,2.949]
[1741544848720,0.98937,2021.7,2021.4,0.98945]
[1741544849415,0.98937,2021.7,2021.2,2.949]
[1741544849616,4.85e-06,2021.8,2021.2,2.949]
[1741544849924,0.98935,2021.7,2021.2,2.949]
[1741544850122,0.98935,2021.7,2021.5,0.98942]
[1741544850322,4.85e-06,2021.8,2021.5,0.98942]
[1741544850522,0.98934,2021.7,2021.5,0.98942]
[1741544850723,4.85e-06,2021.8,2021.2,2.949]
[1741544851115,0.98945,2021.5,2021.3,0.98954]
[1741544851622,4.19722,2021.6,2021.4,0.98949]
[1741544851820,0.98963,2021.1,2021.0,1.3184]
[1741544852019,3.2078,2021.6,2021.4,0.98948]
[1741544852216,3.2078,2021.6,2021.0,1.3184]
[1741544852413,5.68133,2021.6,2021.0,1.3184]
[1741544852618,0.98963,2021.1,2021.0,1.3184]
[1741544852817,0.98963,2021.1,2021.0,2.30808]
[1741544853024,4.19735,2021.3,2021.1,0.9896]
[1741544853323,3.2078,2021.6,2021.0,1.3184]
[1741544853718,0.98949,2021.4,2021.3,0.98952]
[1741544853920,3.2078,2021.6,2021.3,0.98952]
[1741544854121,3.2078,2021.6,2021.5,0.98944]
[1741544854319,4.85e-06,2021.8,2021.1,8.63089]
[1741544854519,4.85e-06,2021.8,2021.5,0.98941]
[1741544854520,0.98938,2021.7,2021.5,0.98941]
[1741544854822,0.98937,2021.7,2021.6,0.98939]
[1741544855026,0.98935,2021.7,2021.5,0.98942]
[1741544855225,4.85e-06,2021.8,2021.5,0.98942]
[1741544855521,4.85e-06,2021.8,2021.1,6.1568]
[1741544855727,0.98942,2021.6,2021.4,0.98947]
[1741544855935,4.85e-06,2021.8,2021.5,0.9894]
[1741544855936,0.98934,2021.7,2021.5,0.9894]
[1741544856230,4.85e-06,2021.8,2021.5,0.9894]
[1741544856423,0.98932485,2021.8,2021.3,2.47385]
[1741544856725,4.85e-06,2021.8,2021.7,0.98934]
[1741544857020,0.98898,2022.5,2022.3,0.98901]
[1741544857223,6.4018,2022.7,2021.7,6.1568]
[1741544857224,0.98908,2022.3,2022.1,0.98914]
[1741544857425,0.98908,2022.3,2022.2,0.9891]
[1741544857628,0.9891,2022.2,2021.7,8.63016]
[1741544857819,0.98903,2022.4,2022.2,0.98908]
[1741544858222,0.98907,2022.3,2022.1,0.98913]
[1741544858418,0.9889,2022.7,2022.1,2.47287]
[1741544858724,3.2078,2023.0,2022.2,1.2312]
[1741544858725,0.98896,2022.5,2022.2,1.2312]
[1741544858928,0.98913,2022.2,2022.0,4.19697]
[1741544859223,3.2078,2022.6,2021.7,7.39540485]
[1741544859524,3.2078,2022.6,2021.7,4.18760485]
[1741544859525,3.2078,2022.3,2021.7,4.18760485]
[1741544859719,0.9892,2022.0,2021.8,0.98929]
[1741544859921,0.98897,2022.5,2022.3,0.98905]
[1741544860121,3.194,2022.7,2022.0,3.2078]
[1741544860319,0.98903,2022.4,2022.2,0.98908]
[1741544860730,3.194,2022.7,2022.0,3.2078]
[1741544860929,3.194,2022.7,2022.3,0.989]
[1741544861121,0.98898,2022.5,2022.3,0.98902]
[1741544861321,3.194,2022.7,2022.0,3.2078]
[1741544861617,3.2078,2022.9,2022.1,2.949]
[1741544861824,0.98882,2022.8,2022.6,0.98889]
[1741544862019,3.2078,2022.9,2022.4,3.2078]
[1741544862225,4.19659,2022.9,2022.4,3.2078]
[1741544862420,3.2078,2022.9,2022.8,0.9888]
[1741544862625,8.68601,2023.3,2022.7,3.2078]
[1741544862831,0.98863,2023.2,2023.0,0.98867]
[1741544863129,3.2078,2023.3,2023.0,0.98867]
[1741544863330,0.98862,2023.2,2023.0,0.9887]
[1741544863729,0.98861,2023.2,2023.0,0.9887]
[1741544864625,3.2078,2023.3,2023.0,0.9887]
[1741544864823,0.9885,2023.5,2023.2,0.98858]
[1741544865023,4.4245,2023.6,2022.8,0.00740485]
[1741544865230,3.2078,2023.3,2022.8,0.00740485]
[1741544865431,0.98874,2023.0,2022.8,0.00740485]
[1741544865725,0.98874,2023.0,2022.8,0.99620485]
[1741544865935,3.2078,2023.3,2022.8,0.00740485]
[1741544866126,0.98874,2023.0,2022.8,0.00740485]
[1741544866321,3.2078,2023.3,2022.8,0.00740485]
[1741544866631,4.4245,2023.6,2023.0,0.98869]
[1741544866831,0.9886,2023.3,2023.0,0.98869]
[1741544867034,4.4245,2023.6,2023.0,0.98866]
[1741544867239,4.4245,2023.6,2023.0,3.2078]
[1741544867734,5.41296,2023.6,2022.9,2.949]
[1741544867924,4.4245,2023.6,2023.1,3.2078]
[1741544868118,4.19623,2023.6,2023.1,3.2078]
[1741544868321,3.2078,2023.6,2023.1,3.2078]
[1741544868527,3.2078,2024.0,2023.4,3.2078]
[1741544868727,3.2078,2024.6,2023.7,3.2078]
[1741544868934,1.2396,2024.7,2024.1,3.2078]
[1741544869226,0.98794,2024.6,2024.1,3.2078]
[1741544869434,3.2078,2025.0,2024.1,6.1568]
[1741544869628,0.98779,2024.9,2024.5,0.98795]
[1741544869834,3.2078,2025.0,2024.1,6.1568]
[1741544870126,0.98797,2024.5,2024.4,1.60876]
[1741544870339,6.3988,2024.5,2023.9,0.00740485]
[1741544870633,22.184,2025.2,2024.7,0.98787]
[1741544870634,3.2078,2024.8,2024.7,0.98787]
[1741544871221,3.19,2025.3,2024.7,4.0]
[1741544871222,3.2078,2025.3,2024.7,4.0]
[1741544871426,0.98729,2025.9,2025.3,0.98755]
[1741544871728,0.98712,2026.3,2025.8,0.98729]
[1741544871920,5.6316,2026.4,2025.7,3.2078]
[1741544872124,3.2078,2026.9,2026.3,3.2078]
[1741544872433,1.38910624,2027.2,2026.8,3.2078]
[1741544872623,2.985,2027.2,2026.9,3.2078]
[1741544872828,3.2078,2027.5,2026.9,3.2078]
[1741544873126,2.985,2028.1,2027.4,0.98652]
[1741544873323,2.985,2028.2,2027.8,3.2078]
[1741544873524,3.2078,2027.9,2027.1,3.2078]
[1741544873734,4.1924,2028.2,2027.8,0.00740485]
[1741544874032,6.1928,2029.0,2028.1,3.2078]
[1741544874228,3.2078,2028.9,2028.1,3.2078]
[1741544874428,1.2164,2029.1,2028.1,3.2078]
[1741544874631,1.2164,2029.1,2028.8,3.2078]
[1741544874833,2.985,2029.3,2028.8,3.2078]
[1741544875029,3.2078,2029.5,2028.8,3.2078]
[1741544875232,3.2078,2029.9,2029.1,3.2078]
[1741544875434,1.7686,2029.8,2029.6,3.2078]
[1741544875634,1.7686,2029.9,2029.2,3.2078]
[1741544875936,4.9764,2030.8,2029.6,3.2078]
[1741544876130,3.2078,2030.4,2029.6,3.2078]
[1741544876337,3.2078,2030.4,2029.5,0.4928]
[1741544876533,3.2078,2030.4,2030.1,3.2078]
[1741544876725,3.2078,2030.4,2030.0,3.2078]
[1741544877034,3.2078,2030.8,2030.0,3.2078]
[1741544877224,22.23669697,2030.9,2030.3,3.2078]
[1741544877430,22.23669697,2030.9,2030.7,3.2078]
[1741544878227,3.2078,2031.0,2030.5,3.2078]
[1741544878427,3.2078,2030.7,2029.8,0.00740485]
[1741544878628,3.2078,2030.3,2029.9,3.0999286]
[1741544878838,3.2078,2030.4,2029.8,0.00740485]
[1741544879129,3.2078,2030.5,2030.0,3.2078]
[1741544879329,3.2078,2030.5,2029.8,0.00740485]
[1741544879539,3.2078,2030.0,2029.8,0.00740485]
[1741544879733,0.98534,2029.9,2029.8,0.00740485]
[1741544879932,0.98549,2029.7,2028.9,3.0999286]
[1741544880130,3.2078,2029.7,2028.8,3.2078]
[1741544880435,3.2078,2029.4,2028.5,4.0859386]
[1741544880637,3.2078,2029.4,2028.3,3.7014]
[1741544880941,3.2078,2029.3,2028.3,3.2078]
[1741544881239,3.2078,2028.6,2027.9,3.2078]
[1741544881537,3.784,2028.9,2028.6,0.00738625]
[1741544881843,1.7686,2029.9,2029.2,0.98567]
[1741544882136,1.14605736,2030.3,2029.9,0.98531]
[1741544882333,3.2078,2030.3,2029.5,3.2078]
[1741544882537,7.0328,2030.4,2029.2,3.2078]
[1741544882734,3.2078,2029.4,2028.8,0.4928]
[1741544882934,3.2078,2028.9,2028.3,22.132]
[1741544883233,3.2078,2028.4,2027.9,3.2078]
[1741544883438,3.2078,2028.7,2028.4,0.00738625]
[1741544883937,0.98602,2028.5,2028.4,0.00738625]
[1741544884146,0.98602,2028.5,2027.2,0.40034995]
[1741544884147,3.2078,2028.1,2026.5,0.4936]
[1741544884442,3.2078,2027.2,2026.1,9.2567286]
[1741544884638,3.838,2027.4,2026.4,3.2078]
[1741544884837,3.2078,2026.7,2025.7,4.4849]
[1741544885033,3.2078,2026.5,2025.7,3.2078]
[1741544885236,3.2078,2026.4,2025.9,0.98729]
[1741544885539,0.00738625,2026.4,2026.3,0.98709]
[1741544885843,1.2081,2028.3,2026.6,3.2078]
[1741544886029,3.2078,2028.2,2027.2,3.2078]
[1741544886538,5.0531,2028.3,2027.3,3.2078]
[1741544886735,0.98664,2027.3,2026.5,4.19478]
[1741544886932,7.0668,2027.6,2026.4,3.2078]
[1741544887137,3.2078,2026.6,2026.0,0.4936]
[1741544887338,3.2078,2027.3,2026.7,0.00738625]
[1741544887739,4.4159,2028.3,2027.1,3.2078]
[1741544887941,4.4159,2028.3,2027.4,3.2078]
[1741544888141,3.2078,2028.2,2027.6,3.2078]
[1741544888346,3.2078,2027.9,2027.6,3.2078]
[1741544888537,0.98608,2028.4,2027.7,0.98638]
[1741544888739,0.9863,2028.0,2027.4,3.0999286]
[1741544889043,0.98644,2027.7,2027.5,0.00738625]
[1741544889242,3.2078,2028.1,2027.5,0.00738625]
[1741544889537,4.19386,2028.5,2027.8,4.19414]
[1741544889847,3.2078,2028.5,2027.5,0.00738625]
[1741544890043,3.921,2028.4,2027.5,0.00738625]
[1741544890246,3.2078,2027.9,2027.5,0.00738625]
[1741544890541,1.2476,2028.6,2027.5,0.00738625]
[1741544890542,4.19395,2028.3,2027.8,3.2078]
[1741544890735,3.2078,2028.3,2027.8,3.2078]
[1741544891145,7.1448,2028.8,2027.8,3.2078]
[1741544891445,3.2078,2028.4,2027.5,3.21518625]
[1741544891747,3.2078,2028.7,2027.9,3.2078]
[1741544891938,3.2078,2029.0,2028.0,2.949]
[1741544892344,3.2078,2028.7,2028.0,2.949]
[1741544892641,3.2078,2029.0,2028.3,3.2078]
[1741544892845,1.2858,2029.3,2028.6,4.19376]
[1741544892846,0.98565,2029.3,2028.6,4.19376]
[1741544893041,3.2078,2029.4,2029.0,3.2078]
[1741544893244,0.98579,2029.0,2028.6,3.2078]
[1741544893453,0.98579,2029.0,2028.4,4.0859786]
[1741544893454,3.2078,2029.4,2028.7,0.00738625]
[1741544893744,0.98588,2028.8,2028.7,3.21518625]
[1741544893944,0.98608,2028.4,2028.1,3.2078]
[1741544894143,3.931,2029.0,2028.3,0.98609]
[1741544894448,3.2078,2029.1,2028.5,3.2078]
[1741544894645,3.2078,2029.4,2028.5,7.1308]
[1741544894845,3.2078,2029.4,2028.8,3.2078]
[1741544895144,3.2078,2029.7,2029.0,3.2078]
[1741544895345,0.00738625,2029.3,2028.9,0.99320625]
[1741544895552,0.00738625,2029.3,2029.2,3.2078]
[1741544895751,4.4653,2030.5,2029.2,3.2078]
[1741544895943,1.2575,2030.5,2029.7,3.2078]
[1741544896245,3.2078,2031.3,2030.4,3.2078]
[1741544896449,0.98474,2031.2,2030.4,3.2078]
[1741544896646,3.2078,2031.3,2030.8,3.2078]
[1741544896840,5.91636591,2044.0,2030.8,3.2078]
[1741544896841,3.2078,2031.6,2030.8,3.2078]
[1741544897045,3.2078,2031.6,2031.2,0.98468]
[1741544897350,3.2078,2032.7,2031.4,3.2078]
[1741544897554,3.2078,2032.7,2031.6,3.2078]
[1741544897739,3.2078,2033.0,2032.1,3.2078]
[1741544898047,3.2078,2032.4,2031.9,0.00738625]
[1741544898251,0.98433,2032.0,2031.9,0.00738625]
[1741544898450,0.98433,2032.0,2031.9,6.25e-06]
[1741544898644,8.88533,2032.0,2031.9,6.25e-06]
[1741544899449,10.18603,2032.0,2031.9,6.25e-06]
[1741544899746,10.18603,2032.0,2030.4,3.7006]
[1741544899747,10.9703,2032.0,2030.6,3.2078]
[1741544899948,3.2078,2030.7,2030.2,3.2078]
[1741544900146,3.89,2030.9,2030.2,3.2078]
[1741544900343,3.89,2030.9,2030.1,3.2078]
[1741544900344,3.2078,2030.6,2030.1,3.2078]
[1741544901051,3.21518625,2030.6,2030.1,0.00738625]
[1741544901246,0.00738625,2030.6,2030.1,0.00738625]
[1741544902050,0.00738625,2030.6,2030.5,0.98505]
[1741544902249,1.3007,2032.0,2030.5,3.0999286]
[1741544902440,3.2078,2031.9,2031.2,3.2078]
[1741544902752,3.2078,2031.6,2030.9,4.19263]
[1741544902949,3.2078,2031.6,2030.7,0.60407416]
[1741544903249,2.46242,2030.7,2029.7,0.98542]
[1741544903442,3.2078,2030.0,2029.7,0.4928]
[1741544903646,3.2078,2030.0,2028.8,3.0999286]
[1741544903844,3.2078,2029.5,2028.9,0.4928]
[1741544904040,0.98599,2028.6,2028.2,5.46477]
[1741544904248,3.2078,2029.5,2028.3,3.5935286]
[1741544904454,3.2078,2029.5,2028.4,5.67299]
[1741544904752,3.2078,2029.0,2028.2,1.27818625]
[1741544905048,0.98575,2029.1,2028.4,3.2078]
[1741544905250,2.4641,2029.3,2028.4,3.2078]
[1741544905448,3.2078,2028.8,2028.2,1.27818625]
[1741544905645,3.2078,2028.4,2028.2,0.00738625]
[1741544906347,3.2078,2028.7,2028.3,6.9549286]
[1741544906543,3.2078,2030.0,2028.7,2.46482]
[1741544906746,3.2078,2029.6,2029.3,0.98563]
[1741544906945,3.2078,2029.6,2029.2,0.98566]
[1741544906946,4.19331,2029.6,2029.2,0.98566]
[1741544907147,3.2078,2029.3,2028.7,3.0999286]
[1741544907351,0.9858,2029.0,2028.5,6.9549286]
[1741544907547,0.98586,2028.9,2028.5,4.841]
[1741544907744,3.2078,2029.2,2028.5,3.855]
[1741544907941,3.2078,2029.6,2028.7,3.2078]
[1741544908144,3.2078,2029.9,2029.8,0.98539]
[1741544908340,0.98507,2030.5,2030.1,0.98521]
[1741544908539,3.2078,2030.3,2029.6,6.0489286]
[1741544908748,3.2078,2030.0,2029.1,3.2078]
[1741544909154,3.2078,2029.7,2029.3,0.00738625]
[1741544909452,3.2078,2029.4,2029.3,0.00738625]
[1741544909653,4.19339,2029.4,2029.3,0.00738625]
[1741544912457,3.2078,2029.7,2029.3,0.00738625]
[1741544912652,3.2078,2030.0,2029.4,0.09855129]
[1741544912950,0.98549,2029.6,2029.4,6.14747989]
[1741544913156,3.2078,2030.0,2029.4,9.35527989]
[1741544913360,3.2078,2030.0,2029.4,6.14747989]
[1741544913557,3.2078,2030.4,2029.4,6.25535129]
[1741544913751,3.2078,2030.4,2029.5,6.0489286]
[1741544913948,0.98533,2030.0,2029.7,3.2078]
[1741544914148,3.2078,2031.7,2031.3,0.98466]
[1741544914347,3.2078,2031.7,2031.2,3.2078]
[1741544914650,2.46021,2032.6,2031.5,3.2078]
[1741544914856,2.46021,2032.6,2031.3,3.93645911]
[1741544914857,0.98446,2031.8,2031.4,4.19241]
[1741544915053,3.2078,2032.3,2031.4,3.2078]
[1741544915260,0.98457,2031.5,2031.4,3.2078]
[1741544915449,0.98462,2031.4,2031.3,0.09845911]
[1741544915654,3.2078,2031.4,2030.8,3.2078]
[1741544915966,2.46179,2031.2,2030.4,3.2078]
[1741544916152,3.2078,2030.8,2030.1,3.2078]
[1741544916346,3.2078,2030.5,2030.1,3.2078]
[1741544916546,0.9852,2030.2,2030.1,3.2078]
[1741544916751,0.98517,2030.3,2030.1,3.2078]
[1741544916950,0.9852,2030.2,2030.1,3.21518625]
[1741544917151,3.21518625,2030.5,2030.1,0.00738625]
[1741544917459,0.99243625,2030.5,2030.4,3.2078]
[1741544917763,0.9852,2030.2,2030.1,0.00738625]
[1741544918054,4.193,2030.2,2030.1,0.00738625]
[1741544918259,0.9852,2030.2,2030.1,0.00738625]
[1741544918461,4.193,2030.2,2030.1,0.00738625]
[1741544919055,9.67092,2030.2,2029.4,3.81]
[1741544919256,3.2078,2030.2,2029.6,3.2078]
[1741544919455,3.21518625,2030.5,2029.9,3.2078]
[1741544919757,0.98517,2030.3,2029.9,4.19311]
[1741544919956,0.98517,2030.3,2029.9,3.2078]
[1741544920151,0.98514,2030.4,2030.0,0.98525]
[1741544920359,3.21518625,2030.5,2029.9,3.21518625]
[1741544920548,0.98517,2030.3,2030.0,0.98527]
[1741544920753,4.20025625,2030.5,2030.2,0.9852]
[1741544920953,0.00738625,2030.5,2030.4,4.1929]
[1741544921258,6.23975,2031.3,2030.4,6.1568]
[1741544921259,3.2078,2031.3,2030.4,6.1568]
[1741544921449,1.7686,2032.3,2030.4,6.1568]
[1741544921450,6.9818,2032.0,2031.3,0.98463]
[1741544921650,3.2078,2032.3,2031.4,3.2078]
[1741544921857,0.98404,2032.6,2032.1,3.2078]
[1741544922057,4.19182,2032.7,2032.1,3.2078]
[1741544922360,3.2078,2032.7,2032.1,3.2078]
[1741544922654,0.00738625,2032.6,2032.4,3.2078]
[1741544922857,0.00738625,2032.6,2032.5,0.98408]
[1741544923063,3.21902921,2033.4,2032.4,7.2078]
[1741544923262,0.98376,2033.2,2033.0,3.2078]
[1741544923470,0.01122921,2033.4,2033.0,3.2078]
[1741544923760,3.21902921,2033.4,2032.9,3.2078]
[1741544923952,0.98404,2032.6,2032.5,5.79546523]
[1741544924152,0.98404,2032.6,2032.5,0.09840098]
[1741544924850,5.93232921,2033.4,2032.5,7.30620098]
[1741544925160,3.21902921,2033.4,2032.8,3.2078]
[1741544925354,3.21902921,2033.4,2033.1,3.2078]
[1741544925355,0.01122921,2033.4,2033.1,3.2078]
[1741544926164,0.98374,2033.2,2033.1,3.2078]
[1741544926359,0.01122921,2033.4,2033.1,3.2078]
[1741544927058,0.98404,2032.6,2032.5,0.09840098]
[1741544927257,3.2078,2033.2,2032.5,0.09840098]
[1741544927564,0.98372,2033.3,2032.9,0.98386]
[1741544927757,0.01122921,2033.4,2033.1,0.98377]
[1741544927958,0.01122921,2033.4,2033.0,3.2078]
[1741544928161,3.21902921,2033.4,2032.7,6.8339286]
[1741544928463,0.98387,2033.0,2032.7,3.0999286]
[1741544928661,3.21902921,2033.4,2032.7,3.0999286]
[1741544929054,0.01122921,2033.4,2032.8,3.30618646]
[1741544929258,3.2078,2033.2,2032.8,3.30618646]
[1741544929459,0.98389,2032.9,2032.8,6.46e-06]
[1741544929663,4.98389,2032.9,2032.8,6.46e-06]
[1741544930063,0.98418,2032.3,2032.2,2.71e-06]
[1741544930260,4.19198,2032.3,2032.2,2.71e-06]
[1741544930567,8.19198,2032.3,2032.2,2.71e-06]
[1741544931071,4.19198,2032.3,2032.2,2.71e-06]
[1741544931362,4.19198,2032.3,2030.9,25.7886]
[1741544931363,8.9764,2032.3,2030.9,25.7886]
[1741544931666,0.98469,2031.3,2031.0,0.98478]
[1741544931869,3.2078,2031.7,2030.9,3.2078]
[1741544932062,3.2078,2031.7,2030.9,6.3077286]
[1741544932267,3.702,2031.8,2031.2,3.2078]
[1741544932479,5.9407,2032.2,2031.5,3.2078]
[1741544932761,0.00738625,2031.7,2031.5,3.2078]
[1741544932966,0.00738625,2031.7,2031.5,4.19233]
[1741544933270,0.00738625,2031.7,2031.6,0.98452]
[1741544933466,3.2078,2032.8,2031.5,7.2078]
[1741544933670,3.687,2032.7,2031.6,3.0999286]
[1741544933871,3.2078,2032.5,2031.6,3.0999286]
[1741544934267,0.98425,2032.2,2031.9,0.98436]
[1741544934472,0.98425,2032.2,2032.1,3.2078]
[1741544934769,3.697,2032.7,2032.1,3.2078]
[1741544935067,0.984,2032.7,2032.5,3.2078]
[1741544935272,0.9841,2032.5,2032.2,4.68479]
[1741544935477,3.2078,2032.8,2032.4,0.00738625]
[1741544935776,0.98408,2032.5,2032.4,0.00738625]
[1741544936165,3.2078,2032.9,2032.4,4.19928625]
[1741544936368,2.45956,2033.1,2032.4,3.21518625]
[1741544936674,3.688,2033.1,2032.4,3.21518625]
[1741544936863,3.688,2033.1,2032.5,0.98408]
[1741544937072,3.688,2033.1,2032.4,3.21518625]
[1741544937373,3.688,2033.1,2032.4,0.00738625]
[1741544937582,3.2078,2033.2,2032.4,0.00738625]
[1741544937872,3.2078,2033.2,2032.5,3.2078]
[1741544938074,0.98397,2032.8,2032.5,4.19187]
[1741544938271,3.2078,2033.2,2032.4,0.00738625]
[1741544938475,3.2078,2033.2,2032.6,0.98402]
[1741544938671,3.2078,2033.2,2032.7,0.98396]
[1741544938874,0.98388,2033.0,2032.8,3.2078]
[1741544939067,3.2078,2033.2,2032.8,3.2078]
[1741544939467,0.98378,2033.2,2032.9,0.98386]
[1741544939668,0.98378,2033.2,2032.6,3.0999286]
[1741544939669,0.01122921,2033.4,2033.1,3.2078]
[1741544939871,0.98378,2033.2,2032.8,3.2078]
[1741544940071,0.98378,2033.2,2033.0,0.98382]
[1741544940270,0.01122921,2033.4,2032.9,0.09838162]
[1741544940474,0.01122921,2033.4,2033.3,0.9837]
[1741544940772,0.01122921,2033.4,2033.1,3.2078]
[1741544941270,0.01122921,2033.4,2032.9,0.09838162]
[1741544941271,0.98384,2033.0,2032.9,0.09838162]
[1741544941471,6.8628,2033.0,2032.4,0.00738625]
[1741544941670,0.98404,2032.6,2032.4,0.00738625]
[1741544941974,4.19188,2032.5,2032.4,0.00738625]
[1741544942174,6.8558,2032.5,2031.5,4.5667]
[1741544942369,6.8558,2032.5,2031.0,2.949]
[1741544942370,3.2078,2032.0,2031.2,3.2078]
[1741544942565,0.98454,2031.6,2031.3,0.98464]
[1741544942771,0.98454,2031.6,2031.3,4.19244]
[1741544942976,0.98452,2031.6,2031.3,3.2078]
[1741544943174,0.98452,2031.6,2031.0,25.5238]
[1741544943175,0.98464,2031.4,2031.0,22.082]
[1741544943476,3.21518625,2031.7,2031.2,0.00738625]